bitfinex-derivatives/quotes_BNBF0:USTF0_20250329
["timestamp","ask_amount","ask_price","bid_price","bid_amount"]
[1743223278766,0.32643468,612.68,611.77,4.524]
[1743223279967,0.28423013,612.67,611.77,4.524]
[1743223283275,0.30023063,612.66,611.78,0.29436535]
[1743223284069,0.30023063,612.66,611.77,2.246]
[1743223284977,0.58456178,612.65,611.77,2.246]
[1743223285177,0.30023063,612.64,611.77,2.246]
[1743223286679,0.28433115,612.65,611.77,3.047]
[1743223286979,0.28433115,612.65,611.77,4.33]
[1743223287673,0.32643468,612.68,611.77,4.33]
[1743223288872,0.2842429,612.67,611.77,4.33]
[1743223290681,0.32643468,612.68,611.77,4.33]
[1743223292080,0.28423709,612.67,611.77,4.33]
[1743223293673,0.32643468,612.68,611.77,4.33]
[1743223294176,0.28431373,612.66,611.77,4.33]
[1743223296480,0.32645066,612.65,611.77,4.33]
[1743223296680,0.32645066,612.65,611.77,5.499]
[1743223300981,0.28426147,612.64,611.77,5.499]
[1743223301483,0.30026569,612.63,611.77,5.499]
[1743223302889,0.30026569,612.62,611.77,5.499]
[1743223303189,0.30026569,612.61,611.77,5.499]
[1743223303581,0.30026569,612.64,611.77,5.499]
[1743223303891,0.28434276,612.6,611.77,5.499]
[1743223305788,0.32645066,612.65,611.77,5.499]
[1743223307189,0.28427657,612.64,611.77,5.499]
[1743223308685,0.32645066,612.65,611.77,5.499]
[1743223309086,0.28428585,612.64,611.77,5.499]
[1743223310588,0.32646132,612.63,611.77,5.499]
[1743223312191,0.28428934,612.62,611.77,5.499]
[1743223312385,0.32647198,612.61,611.77,5.499]
[1743223317897,0.30032407,612.6,611.77,5.499]
[1743223318094,0.32647198,612.61,611.77,5.499]
[1743223318289,0.30032428,612.6,611.77,5.499]
[1743223318692,0.32648263,612.59,611.77,5.499]
[1743223322492,0.30035463,612.58,611.77,5.499]
[1743223323296,0.32649329,612.57,611.77,5.499]
[1743223323595,0.30035463,612.56,611.77,5.499]
[1743223324197,0.32650395,612.55,611.77,5.499]
[1743223324400,0.30035463,612.54,611.77,5.499]
[1743223325099,0.61093871,612.53,611.77,5.499]
[1743223325301,0.62687458,612.52,611.77,5.499]
[1743223325492,0.32652528,612.51,611.77,5.499]
[1743223325698,0.30035463,612.5,611.77,5.499]
[1743223325894,0.32653594,612.49,611.77,5.499]
[1743223326098,0.30035463,612.48,611.77,5.499]
[1743223326300,0.3265466,612.47,611.77,5.499]
[1743223326800,0.30039766,612.46,611.77,5.499]
[1743223327000,0.32655726,612.45,611.77,5.499]
[1743223327195,0.30039766,612.44,611.77,5.499]
[1743223327398,0.32656793,612.43,611.77,5.499]
[1743223327596,0.30039766,612.42,611.77,5.499]
[1743223328300,0.61101664,612.41,611.77,5.499]
[1743223328498,0.62698452,612.4,611.77,5.499]
[1743223328702,0.62698985,612.39,611.77,5.499]
[1743223328902,0.30040059,612.38,611.77,5.499]
[1743223329302,0.32658926,612.39,611.77,5.499]
[1743223329503,0.28443805,612.41,611.77,5.499]
[1743223329504,0.32659993,612.37,611.77,5.499]
[1743223337006,0.28436251,612.36,611.77,5.499]
[1743223337208,0.32661059,612.35,611.77,5.499]
[1743223339313,0.28446014,612.34,611.77,5.499]
[1743223339510,0.32662126,612.33,611.77,5.499]
[1743223342013,0.28447177,612.32,611.77,5.499]
[1743223342211,0.32663193,612.31,611.77,5.499]
[1743223344910,0.3004838,612.3,611.77,5.499]
[1743223345114,0.3266426,612.29,611.77,5.499]
[1743223345314,0.3004838,612.28,611.77,5.499]
[1743223345516,0.32665327,612.27,611.77,5.499]
[1743223345714,0.3004838,612.26,611.77,5.499]
[1743223345914,0.32666394,612.25,611.77,5.499]
[1743223346116,0.3004838,612.24,611.77,5.499]
[1743223346915,0.32667461,612.23,611.77,5.499]
[1743223347119,0.3004838,612.22,611.77,5.499]
[1743223347325,0.32668528,612.21,611.77,5.499]
[1743223347724,0.30050674,612.2,611.77,5.499]
[1743223347926,0.32669596,612.19,611.77,5.499]
[1743223348121,0.30050674,612.18,611.77,5.499]
[1743223348323,0.32670663,612.17,610.79,0.28452061]
[1743223348524,0.30050674,612.16,610.8,0.62208003]
[1743223348721,0.3267173,612.15,610.81,0.62207467]
[1743223348925,0.30050674,612.14,610.82,0.62206931]
[1743223349124,0.32672798,612.13,610.83,0.29464061]
[1743223349325,0.30050674,612.12,610.83,0.29464061]
[1743223350832,0.30050674,612.12,610.84,0.895]
[1743223351029,0.30050674,612.12,610.85,0.29464061]
[1743223351530,0.30050674,612.12,610.86,1.191]
[1743223351730,0.30050674,612.12,610.87,0.29464061]
[1743223352132,0.28464395,612.11,610.87,0.29464061]
[1743223352329,0.28464395,612.11,610.88,1.267]
[1743223352529,0.62729276,612.1,610.89,0.29468255]
[1743223352834,0.30054877,612.09,610.89,0.29468255]
[1743223353027,0.32675467,612.08,610.89,0.29468255]
[1743223353227,0.30054877,612.07,610.89,0.29468255]
[1743223354032,0.32676534,612.06,610.89,0.29468255]
[1743223354332,0.30054877,612.05,610.89,0.29468255]
[1743223355134,0.28466607,612.04,610.89,0.29468255]
[1743223355526,0.61144209,612.04,610.89,0.29468255]
[1743223355733,0.30055757,612.03,610.89,0.29468255]
[1743223356934,0.32677602,612.04,610.89,0.29468255]
[1743223358232,0.28460321,612.03,610.89,0.29468255]
[1743223359526,0.28460321,612.03,610.88,1.267]
[1743223359727,0.32677602,612.04,610.89,0.29468998]
[1743223360231,0.32677602,612.04,610.88,1.267]
[1743223360432,0.32677602,612.04,610.89,0.29468989]
[1743223361035,0.28459274,612.03,610.89,0.29468989]
[1743223361230,0.28459274,612.03,610.88,1.267]
[1743223361434,0.28459274,612.03,610.89,0.2946894]
[1743223362728,0.32677602,612.04,610.89,0.2946894]
[1743223363938,0.28458459,612.03,610.89,0.2946894]
[1743223364737,0.28458459,612.03,610.88,1.267]
[1743223365938,0.32677602,612.04,610.88,1.267]
[1743223366137,0.2846684,612.02,610.88,1.267]
[1743223368433,0.2846684,612.02,610.89,1.35368163]
[1743223368638,0.2846684,612.02,610.89,1.059]
[1743223368834,0.32677602,612.04,610.89,1.059]
[1743223369739,0.32677602,612.04,610.9,0.29467862]
[1743223370038,0.28454503,612.03,610.9,0.29467862]
[1743223370436,0.28454503,612.03,610.91,0.29463542]
[1743223370633,0.28454503,612.03,610.9,0.29463542]
[1743223370838,0.28454503,612.03,610.9,0.62202124]
[1743223371038,0.28454503,612.03,610.91,0.29463542]
[1743223374845,0.32677602,612.04,610.91,0.29463542]
[1743223375646,0.32677602,612.04,610.92,0.2946618]
[1743223375847,0.32677602,612.04,610.91,0.2946618]
[1743223376149,0.28455318,612.03,610.92,0.2946618]
[1743223376345,0.28455318,612.03,610.91,0.2946618]
[1743223376547,0.28455318,612.03,610.9,0.32738582]
[1743223376849,0.28455318,612.03,610.91,0.29466565]
[1743223377347,0.28455318,612.03,610.9,0.32738582]
[1743223377548,0.28455318,612.03,610.91,0.29467114]
[1743223377751,0.32677602,612.04,610.91,0.29467114]
[1743223379052,0.28456947,612.03,610.9,0.32738582]
[1743223379252,0.28456947,612.03,610.91,0.29467241]
[1743223379453,0.28456947,612.03,610.9,0.32738582]
[1743223380150,0.61135083,612.03,610.9,0.32738582]
[1743223380750,0.32678136,612.03,610.9,0.32738582]
[1743223380946,0.32678136,612.03,610.9,1.81638582]
[1743223381147,0.28467073,612.02,610.9,1.81638582]
[1743223381851,0.30057815,612.01,610.91,0.29471179]
[1743223383354,0.32679738,612.0,610.91,0.29471179]
[1743223383555,0.30057815,611.99,610.91,0.29471179]
[1743223383754,0.32679738,612.0,610.9,1.81638582]
[1743223384055,0.32679738,612.0,610.91,0.29472317]
[1743223384755,0.30058996,611.99,610.91,0.29472317]
[1743223384955,0.58521529,611.99,610.91,0.29472317]
[1743223385257,0.28462533,611.99,610.91,0.29472317]
[1743223385451,0.28462533,611.99,610.91,1.12872317]
[1743223385648,0.28462533,611.99,610.92,0.29472317]
[1743223386457,0.30058996,611.98,610.92,0.29472317]
[1743223389357,0.62739802,611.98,610.92,0.29472317]
[1743223389558,0.30058996,611.97,610.92,0.29472317]
[1743223391159,0.32681874,611.96,610.91,0.834]
[1743223391554,0.30058996,611.95,610.91,0.834]
[1743223392163,0.32682942,611.94,610.91,0.834]
[1743223392557,0.30062407,611.93,610.91,0.834]
[1743223393958,0.28473128,611.92,610.91,0.834]
[1743223394156,0.30062407,611.91,610.91,1.807]
[1743223394659,0.28473128,611.92,610.91,1.807]
[1743223395860,0.32682942,611.94,610.91,1.807]
[1743223396061,0.28475808,611.91,610.91,1.807]
[1743223397363,0.32685613,611.89,610.91,1.807]
[1743223397765,0.30084461,611.88,610.91,1.807]
[1743223398160,0.32685613,611.89,610.91,1.807]
[1743223399059,0.30084257,611.88,610.91,1.807]
[1743223399262,0.32687216,611.86,610.91,1.807]
[1743223399463,0.30084257,611.85,610.91,1.807]
[1743223399667,0.32688818,611.83,610.91,1.807]
[1743223399965,0.30084257,611.82,610.91,1.807]
[1743223400166,0.32690421,611.8,610.91,1.807]
[1743223400366,0.30084257,611.79,610.91,1.807]
[1743223400566,0.32692024,611.77,610.91,1.807]
[1743223400769,0.30084257,611.76,610.91,1.807]
[1743223401068,0.32693628,611.74,610.91,1.807]
[1743223401567,0.30089427,611.73,610.91,1.807]
[1743223401766,0.30089427,611.73,610.91,2.951]
[1743223402166,0.32695231,611.71,610.91,2.951]
[1743223402869,0.30089854,611.7,610.91,2.951]
[1743223403070,0.326963,611.69,610.91,2.951]
[1743223403271,0.30089854,611.68,610.91,2.951]
[1743223403472,0.32697369,611.67,610.91,2.951]
[1743223403672,0.30089854,611.66,610.91,2.951]
[1743223405168,0.28482683,611.65,610.91,2.951]
[1743223405371,0.30089854,611.64,610.91,2.951]
[1743223405575,0.32699507,611.63,610.91,2.951]
[1743223405769,0.30089854,611.62,610.91,2.951]
[1743223405969,0.32700577,611.61,610.91,2.951]
[1743223406173,0.30089854,611.6,610.91,2.951]
[1743223406474,0.32701646,611.59,610.91,2.951]
[1743223406773,0.30089854,611.58,610.91,2.951]
[1743223406975,0.32702715,611.57,610.91,2.951]
[1743223407274,0.30083597,611.56,610.91,2.951]
[1743223407475,0.28482683,611.65,610.91,2.951]
[1743223407476,0.32703785,611.55,610.91,2.951]
[1743223409170,0.2846684,611.54,610.91,2.951]
[1743223409371,0.2846684,611.54,610.91,3.887]
[1743223410876,0.32703785,611.55,610.91,3.887]
[1743223412082,0.28471032,611.54,610.91,4.956]
[1743223413680,0.32703785,611.55,610.91,4.956]
[1743223421079,0.28468703,611.54,610.91,4.956]
[1743223422890,0.32703785,611.55,610.91,4.956]
[1743223442096,0.28473245,611.54,610.91,4.956]
[1743223443900,0.32703785,611.55,610.91,4.956]
[1743223444096,0.28479653,611.54,610.91,4.956]
[1743223445504,0.32703785,611.55,610.91,4.956]
[1743223447306,0.28475575,611.66,610.91,4.956]
[1743223452910,2.44269362,612.27,610.91,4.956]
[1743223453210,0.28467306,611.71,610.91,4.956]
[1743223453404,0.32666394,612.25,610.91,4.956]
[1743223453608,0.30066699,612.24,610.91,4.956]
[1743223453809,0.32667995,612.22,610.91,4.956]
[1743223454109,0.30066699,612.21,610.91,4.956]
[1743223454312,0.32669596,612.19,610.91,4.956]
[1743223454713,0.30066604,612.18,610.91,4.956]
[1743223454915,0.32671197,612.16,610.91,4.956]
[1743223455109,0.30066604,612.15,610.91,4.956]
[1743223455311,0.32672798,612.13,610.91,4.956]
[1743223455508,0.30066604,612.12,610.91,4.956]
[1743223455709,0.32674399,612.1,610.91,4.956]
[1743223456117,0.30066604,612.09,610.91,4.956]
[1743223456421,0.32676001,612.07,610.91,4.956]
[1743223456614,0.30066604,612.06,610.91,4.956]
[1743223456818,0.32677068,612.05,610.91,4.956]
[1743223457019,0.30066604,612.04,610.91,4.956]
[1743223457218,0.32678136,612.03,610.91,4.956]
[1743223457420,0.30066604,612.02,610.91,4.956]
[1743223457624,0.32679204,612.01,610.91,4.956]
[1743223457818,0.30066604,612.0,610.91,4.956]
[1743223458024,0.32680272,611.99,610.91,4.956]
[1743223458224,0.30066604,611.98,610.91,4.956]
[1743223458426,0.3268134,611.97,610.91,4.956]
[1743223458622,0.30066604,611.96,610.91,4.956]
[1743223458827,0.32682408,611.95,610.91,4.956]
[1743223460127,0.5853037,611.94,610.91,4.956]
[1743223460328,0.32683476,611.93,610.91,4.956]
[1743223462725,0.30066162,611.92,610.91,4.956]
[1743223462929,0.32684545,611.91,610.91,4.956]
[1743223464026,0.30067221,611.9,610.91,4.956]
[1743223464225,0.32685613,611.89,610.91,4.956]
[1743223464429,0.30067221,611.88,610.91,4.956]
[1743223464631,0.32686681,611.87,610.91,4.956]
[1743223466035,0.28465093,611.86,610.91,4.956]
[1743223466335,0.61152309,611.86,610.91,4.956]
[1743223467936,0.32687216,611.86,610.91,4.956]
[1743223469135,0.28465443,611.85,610.91,4.956]
[1743223470840,0.32687216,611.86,610.91,4.956]
[1743223472240,0.28465792,611.85,610.91,4.956]
[1743223473933,0.32687216,611.86,610.91,4.956]
[1743223475037,0.28466141,611.85,610.91,4.956]
[1743223476937,0.32687216,611.86,610.91,4.956]
[1743223478338,0.28465443,611.85,610.91,4.956]
[1743223479835,0.32687216,611.86,610.91,4.956]
[1743223480240,0.28472546,611.84,610.91,4.956]
[1743223485844,0.32687216,611.86,610.91,4.956]
[1743223487243,0.28467771,611.85,610.91,4.956]
[1743223488841,0.32687216,611.86,610.91,4.956]
[1743223490147,0.28464861,611.85,610.91,4.956]
[1743223491949,0.32687216,611.86,610.91,4.956]
[1743223493151,0.28463347,611.85,610.91,4.956]
[1743223493653,0.30065582,611.84,610.91,4.956]
[1743223495150,0.32687216,611.86,610.91,4.956]
[1743223496348,0.28468121,611.85,610.91,4.956]
[1743223497955,0.32687216,611.86,610.91,4.956]
[1743223498255,0.30069237,611.85,610.91,4.956]
[1743223499057,0.28472546,611.84,610.91,4.956]
[1743223500959,0.32688818,611.83,610.91,4.956]
[1743223502162,0.28467771,611.82,610.91,4.956]
[1743223503864,0.32689353,611.82,610.91,4.956]
[1743223505065,0.28467189,611.81,610.91,4.956]
[1743223506866,0.32689353,611.82,610.91,4.956]
[1743223508159,0.2846684,611.81,610.91,4.956]
[1743223508562,0.32690421,611.8,610.91,4.956]
[1743223508763,0.30070946,611.79,610.91,4.956]
[1743223509164,0.3269149,611.78,610.91,4.956]
[1743223509465,0.30070946,611.77,610.91,4.956]
[1743223509669,0.32692559,611.76,610.91,4.956]
[1743223509866,0.30070946,611.75,610.91,4.956]
[1743223510169,0.62773504,611.74,610.91,4.956]
[1743223510367,0.62774038,611.73,610.91,4.956]
[1743223510667,0.32694696,611.72,610.91,4.956]
[1743223511165,0.61172485,611.72,610.91,4.956]
[1743223512968,0.32694696,611.72,610.91,4.956]
[1743223513962,0.28470799,611.71,610.91,4.956]
[1743223514165,0.32695765,611.7,610.91,4.956]
[1743223515472,0.30078823,611.69,610.91,4.956]
[1743223515672,0.32696834,611.68,610.91,4.956]
[1743223517070,0.28471265,611.67,610.91,4.956]
[1743223517369,0.32697904,611.66,610.91,4.956]
[1743223520071,0.28471614,611.65,610.91,4.956]
[1743223521874,0.32697904,611.66,610.91,4.956]
[1743223522980,0.28471381,611.65,610.91,4.956]
[1743223526476,0.3007828,611.64,610.91,4.956]
[1743223526681,0.28471381,611.65,610.91,4.956]
[1743223527879,0.32697904,611.66,610.91,4.956]
[1743223529186,0.28470799,611.65,610.91,4.956]
[1743223533188,0.3007865,611.64,610.91,4.956]
[1743223534089,0.28479653,611.63,610.91,4.956]
[1743223536784,0.32697904,611.66,610.91,4.956]
[1743223538191,0.28469867,611.65,610.91,4.956]
[1743223539891,0.32697904,611.66,610.91,4.956]
[1743223541192,0.28469052,611.65,610.91,4.956]
[1743223542991,0.32697904,611.66,610.91,4.956]
[1743223543192,0.28475808,611.64,610.91,4.956]
[1743223545891,0.32697904,611.66,610.91,4.956]
[1743223546087,0.28475808,611.64,610.91,4.956]
[1743223548892,0.32697904,611.66,610.91,4.956]
[1743223553790,0.28464511,611.75,610.92,0.294772]
[1743223553990,0.28464511,611.75,610.91,4.956]
[1743223554191,5.68675189,612.41,610.53,0.28464511]
[1743223554397,0.30061386,612.4,610.54,0.29474734]
[1743223554595,0.32659459,612.38,610.55,0.32757349]
[1743223554902,0.30061386,612.37,610.56,0.29474734]
[1743223555493,0.30061386,612.37,610.57,0.32756276]
[1743223555798,0.30061386,612.37,610.58,0.29474734]
[1743223556391,0.30061386,612.37,610.59,0.32755203]
[1743223556595,0.30061386,612.37,610.6,0.29474734]
[1743223556799,0.32661059,612.35,610.61,0.32754131]
[1743223556999,0.30061386,612.34,610.62,0.29474734]
[1743223557199,0.30061386,612.34,610.62,2.19274734]
[1743223557500,0.30061386,612.34,610.63,2.20174734]
[1743223557693,0.30061386,612.34,610.64,0.29474734]
[1743223557896,0.32661059,612.35,610.63,1.907]
[1743223558094,0.30060681,612.34,610.64,0.29474039]
[1743223558596,0.30060681,612.34,610.65,0.32751985]
[1743223558794,0.3266266,612.32,610.66,0.29474039]
[1743223558997,0.30060681,612.31,610.67,0.32750912]
[1743223559197,0.3266426,612.29,610.68,0.29474039]
[1743223559503,0.3266426,612.29,610.69,0.3274984]
[1743223559504,0.30060681,612.28,610.69,0.3274984]
[1743223559799,0.3266586,612.26,610.7,0.29474039]
[1743223560000,0.30060681,612.25,610.71,0.32748767]
[1743223560301,0.32666928,612.24,610.72,0.29474039]
[1743223560499,0.32666928,612.24,610.73,0.32747695]
[1743223560700,0.30060681,612.23,610.74,0.29474039]
[1743223561002,0.32667995,612.22,610.75,0.32746623]
[1743223561302,0.30060681,612.21,610.76,0.29474039]
[1743223561503,0.32669062,612.2,610.76,0.62220125]
[1743223561697,0.30060681,612.19,610.77,0.29474039]
[1743223561900,0.32670129,612.18,610.77,0.29474039]
[1743223562102,0.30060681,612.17,610.77,0.29474039]
[1743223562303,0.32671197,612.16,610.77,0.29474039]
[1743223562503,0.30060681,612.15,610.77,0.29474039]
[1743223562703,0.32672264,612.14,610.77,0.29474039]
[1743223562906,0.30060681,612.13,610.77,0.29474039]
[1743223563205,0.32673332,612.12,610.77,0.29474039]
[1743223563504,0.30060681,612.11,610.77,0.29474039]
[1743223563700,0.32674399,612.1,610.77,0.29474039]
[1743223563902,0.30060681,612.09,610.77,0.29474039]
[1743223564201,0.32675467,612.08,610.77,0.29474039]
[1743223564403,0.32675467,612.08,610.76,0.32746086]
[1743223564705,0.30063882,612.07,610.77,0.29477235]
[1743223564904,0.32676534,612.06,610.77,0.29477235]
[1743223565105,0.30063882,612.05,610.77,0.29477235]
[1743223565304,0.32677602,612.04,610.77,0.29477235]
[1743223565605,0.30063882,612.03,610.77,0.29477235]
[1743223565804,0.3267867,612.02,610.77,0.29477235]
[1743223566004,0.3267867,612.02,610.76,0.32746086]
[1743223566199,0.30064279,612.01,610.77,0.29477627]
[1743223566399,0.32679738,612.0,610.77,0.29477627]
[1743223566599,0.30064279,611.99,610.77,0.29477627]
[1743223566805,0.32680806,611.98,610.77,0.29477627]
[1743223567008,0.30064279,611.97,610.77,0.29477627]
[1743223567301,0.32681874,611.96,610.77,0.29477627]
[1743223567505,0.30064279,611.95,610.77,0.29477627]
[1743223567706,0.32682942,611.94,610.77,0.29477627]
[1743223567900,0.32682942,611.94,610.76,0.32746086]
[1743223568102,0.30065924,611.93,610.77,0.29479267]
[1743223568406,0.627494,611.93,610.77,0.29479267]
[1743223568608,0.30065924,611.92,610.77,0.29479267]
[1743223569203,0.28471847,611.91,610.77,0.29479267]
[1743223569508,0.30065924,611.9,610.77,0.29479267]
[1743223569707,0.28471847,611.91,610.76,0.32746086]
[1743223570009,0.30065738,611.9,610.77,0.29479082]
[1743223571801,0.30065738,611.92,610.77,0.29479082]
[1743223572003,0.2847208,611.89,610.77,0.29479082]
[1743223572207,0.30065738,611.88,610.77,0.29479082]
[1743223572407,0.2847208,611.89,610.77,0.29479082]
[1743223573110,0.2847208,611.89,610.78,0.29473751]
[1743223573310,0.2847208,611.89,610.77,0.29473751]
[1743223574710,0.32683476,611.93,610.77,0.29473751]
[1743223574911,0.28469052,611.88,610.77,0.29473751]
[1743223577715,0.32683476,611.93,610.77,0.29473751]
[1743223577915,0.28469052,611.87,610.77,0.29473751]
[1743223578318,0.28469052,611.87,610.78,0.32745014]
[1743223578513,0.28469052,611.87,610.79,0.29473751]
[1743223578717,0.28469052,611.87,610.79,0.62218229]
[1743223578912,0.28469052,611.87,610.8,0.29473751]
[1743223579610,0.28469052,611.87,610.8,0.62217693]
[1743223579918,0.28469052,611.87,610.8,1.47143942]
[1743223580116,0.28469052,611.87,610.81,0.29472121]
[1743223580317,0.32683476,611.93,610.82,0.3274287]
[1743223580514,0.32683476,611.93,610.83,0.29472121]
[1743223580712,0.32683476,611.93,610.83,0.62214455]
[1743223580912,0.32683476,611.93,610.84,0.29472121]
[1743223582620,0.32683476,611.93,610.85,0.32741262]
[1743223582821,0.32683476,611.93,610.86,0.29472121]
[1743223585120,0.32683476,611.93,610.87,0.951]
[1743223585319,0.32683476,611.93,610.88,0.29472121]
[1743223586323,0.32683476,611.93,610.89,1.288]
[1743223586522,0.32683476,611.93,610.9,0.29472121]
[1743223586824,0.32683476,611.93,610.89,1.288]
[1743223587124,0.32683476,611.93,610.9,0.29468365]
[1743223590027,0.28466607,611.92,610.9,0.29468365]
[1743223592128,0.28466607,611.92,610.89,1.288]
[1743223592328,0.28466607,611.92,610.9,0.29471444]
[1743223592829,0.32683476,611.93,610.9,0.29471444]
[1743223593030,0.28466607,611.91,610.9,0.29471444]
[1743223594032,2.44269362,612.47,610.89,1.288]
[1743223594236,0.627055,612.46,610.9,0.32738582]
[1743223594434,0.62706033,612.45,610.9,0.32738582]
[1743223594635,0.62706567,612.44,610.9,0.32738582]
[1743223594835,0.627071,612.43,610.9,0.32738582]
[1743223595036,0.62707633,612.42,610.91,0.29462985]
[1743223595230,0.62708166,612.41,610.92,0.3273751]
[1743223595535,0.32658393,612.4,610.92,0.3273751]
[1743223597035,0.30049484,612.39,610.93,0.29462876]
[1743223597235,0.32659459,612.38,610.94,0.32736438]
[1743223597635,0.30049484,612.37,610.95,0.29462876]
[1743223598237,0.32660526,612.36,610.96,0.32735367]
[1743223598439,0.30049484,612.35,610.97,0.29462876]
[1743223598635,0.32661593,612.34,610.97,0.62197707]
[1743223598831,0.30049484,612.33,610.98,0.29462876]
[1743223599031,0.3266266,612.32,610.98,0.29462876]
[1743223599229,0.30049484,612.31,610.98,0.29462876]
[1743223599428,0.32663726,612.3,610.98,0.29462876]
[1743223599628,0.30049484,612.29,610.98,0.29462876]
[1743223599833,0.32664793,612.28,610.98,0.29462876]
[1743223600135,0.30049484,612.27,610.98,0.29462876]
[1743223602034,0.28457412,612.26,610.98,0.29462876]
[1743223602330,0.30049484,612.25,610.98,0.29462876]
[1743223602838,0.30049226,612.24,610.99,0.29462618]
[1743223603038,0.30049226,612.23,611.0,0.29462618]
[1743223603238,0.30049226,612.25,610.98,0.29462618]
[1743223603539,0.3004896,612.24,610.99,0.29462353]
[1743223603737,0.3004896,612.25,610.98,0.29462353]
[1743223603937,0.3004896,612.24,610.99,0.29462353]
[1743223604136,0.3004896,612.25,610.98,0.29462353]
[1743223604837,0.3004896,612.27,610.98,0.29462353]
[1743223605038,0.28457645,612.24,610.98,0.29462353]
[1743223605235,0.3004896,612.23,610.98,0.29462353]
[1743223605437,0.3004896,612.23,610.99,0.94]
[1743223605735,0.3004896,612.23,611.0,0.29462353]
[1743223606637,0.3004896,612.23,611.01,1.054]
[1743223606936,0.3004896,612.23,611.02,0.29462353]
[1743223607435,0.28457645,612.24,611.01,1.054]
[1743223607640,0.61124573,612.24,611.01,1.054]
[1743223607840,0.32667461,612.23,611.01,1.054]
[1743223610946,0.28458576,612.22,611.01,1.054]
[1743223613643,0.32667461,612.23,611.01,1.054]
[1743223614149,0.28457528,612.21,611.01,1.054]
[1743223614847,0.28457528,612.21,611.02,0.294635]
[1743223615049,0.28457528,612.21,611.02,1.677635]
[1743223615249,0.28457528,612.21,611.02,1.383]
[1743223615948,0.28457528,612.21,611.03,0.29463437]
[1743223616350,0.28457528,612.21,611.02,1.383]
[1743223616550,0.28457528,612.21,611.03,0.29463437]
[1743223616748,0.32667461,612.23,611.03,0.29463437]
[1743223616950,0.28457412,612.2,611.02,1.383]
[1743223617348,0.28457412,612.2,611.03,0.2946343]
[1743223618549,0.28457412,612.2,611.03,1.5936343]
[1743223618748,0.28457412,612.2,611.04,0.2946343]
[1743223618946,0.28457412,612.2,611.03,1.299]
[1743223619646,0.32667461,612.23,611.04,0.29463467]
[1743223620052,0.28457296,612.19,611.03,1.299]
[1743223620251,0.28457296,612.19,611.04,0.29462177]
[1743223621052,0.28457296,612.19,611.03,1.299]
[1743223621353,0.28457296,612.19,611.04,1.46962105]
[1743223621552,0.28457296,612.19,611.05,0.29462105]
[1743223621946,0.28457296,612.19,611.04,1.175]
[1743223622146,0.28457296,612.19,611.05,1.122]
[1743223622651,0.32670129,612.18,611.05,1.122]
[1743223623550,0.28451712,612.17,611.05,1.122]
[1743223623752,0.32671197,612.16,611.05,1.122]
[1743223625651,0.30060536,612.15,611.05,1.122]
[1743223625854,0.32672264,612.14,611.05,1.122]
[1743223626154,0.30060536,612.13,611.05,1.122]
[1743223626348,0.32673332,612.12,611.05,1.122]
[1743223626553,0.30060536,612.11,611.05,1.122]
[1743223626853,0.32674399,612.1,611.05,1.122]
[1743223627054,0.30060536,612.09,611.05,1.122]
[1743223627255,0.32675467,612.08,611.05,1.122]
[1743223627454,0.30060536,612.07,611.05,1.122]
[1743223627654,0.32676534,612.06,611.05,1.122]
[1743223627855,0.30060536,612.05,611.05,1.122]
[1743223628055,0.62740191,612.04,611.05,1.122]
[1743223628355,0.32678136,612.03,611.05,1.122]
[1743223628556,0.30062895,612.02,611.05,1.122]
[1743223628749,0.32679204,612.01,611.05,1.122]
[1743223629857,0.30062515,612.0,611.05,1.122]
[1743223630156,0.32680272,611.99,611.05,1.122]
[1743223630558,0.30062515,611.98,611.05,1.122]
[1743223630756,0.3268134,611.97,611.05,1.122]
[1743223630958,0.30062515,611.96,611.05,1.122]
[1743223632157,0.3268134,611.97,611.05,2.541]
[1743223632358,0.3268134,611.97,611.05,3.46]
[1743223632756,0.28464977,611.95,611.05,3.46]
[1743223633352,0.3268134,611.97,611.05,3.46]
[1743223633657,0.3268134,611.97,611.06,0.29466453]
[1743223634158,0.3268134,611.97,611.05,3.46]
[1743223638061,0.28462649,611.96,611.05,3.46]
[1743223640759,0.3268134,611.97,611.05,3.46]
[1743223640960,0.28464977,611.95,611.05,3.46]